bitfinex-derivatives/quotes_BTCF0:USTF0_20241109
["timestamp","ask_amount","ask_price","bid_price","bid_amount"]
[1731149978633,0.04981266,76519.0,76518.0,0.20966153]
[1731149980325,0.04981266,76519.0,76514.0,0.15669737]
[1731149980326,0.14711663,76519.0,76514.0,0.065304]
[1731149980524,0.09730397,76518.0,76515.0,0.00702217]
[1731149980730,0.09730397,76517.0,76516.0,0.00702217]
[1731149982525,0.05721378,76517.0,76516.0,0.00702217]
[1731149983029,0.09730397,76517.0,76516.0,0.00702217]
[1731149985336,0.09730397,76517.0,76516.0,0.07232517]
[1731149985540,0.09730342,76517.0,76516.0,0.14497814]
[1731149985838,0.09730342,76517.0,76516.0,0.14499656]
[1731149986429,0.09730305,76517.0,76516.0,0.14499656]
[1731149987644,0.23867322,76520.0,76518.0,0.065301]
[1731149987830,0.23867322,76520.0,76519.0,0.09567358]
[1731149989733,0.23867322,76520.0,76519.0,0.16097358]
[1731149990132,0.14319322,76520.0,76519.0,0.16097358]
[1731149990335,0.14319322,76520.0,76519.0,0.27501307]
[1731149990734,0.14319322,76520.0,76519.0,0.1609553]
[1731149991036,0.14319322,76520.0,76519.0,0.27497275]
[1731149991933,0.14319322,76520.0,76519.0,0.1609553]
[1731149994642,0.14319322,76520.0,76519.0,0.23935509]
[1731149995738,0.21584619,76520.0,76519.0,0.23935509]
[1731149996638,0.07265297,76520.0,76519.0,0.23935509]
[1731149998146,0.07265297,76520.0,76519.0,0.17405509]
[1731149999849,0.07265297,76520.0,76519.0,0.15005509]
[1731150000244,0.3608,76522.0,76519.0,0.07839979]
[1731150000459,0.45628,76522.0,76519.0,0.07839979]
[1731150000642,0.07265297,76520.0,76519.0,0.07839979]
[1731150001341,0.07265297,76520.0,76517.0,0.065302]
[1731150001644,0.07265297,76520.0,76519.0,0.07841724]
[1731150002651,0.07265297,76520.0,76517.0,0.065302]
[1731150002843,0.16995602,76520.0,76517.0,0.065302]
[1731150003044,0.09730305,76519.0,76517.0,0.065302]
[1731150003649,0.09730305,76519.0,76513.0,0.0061]
[1731150003650,0.09730312,76518.0,76514.0,0.065305]
[1731150003841,0.05721328,76517.0,76516.0,0.065303]
[1731150004043,0.05721328,76517.0,76516.0,0.07210694]
[1731150005353,0.05721328,76517.0,76516.0,0.07211103]
[1731150005544,0.05721328,76517.0,76516.0,0.065303]
[1731150005743,0.05721328,76517.0,76516.0,0.07211103]
[1731150007157,0.05721328,76517.0,76516.0,0.07207857]
[1731150008049,0.05721328,76517.0,76516.0,0.065303]
[1731150008353,0.05721304,76517.0,76516.0,0.065303]
[1731150009348,0.09730253,76517.0,76516.0,0.065303]
[1731150009551,0.09730253,76517.0,76512.0,0.13801712]
[1731150009755,0.32812393,76522.0,76520.0,0.065299]
[1731150010057,0.32812393,76522.0,76521.0,0.11339407]
[1731150014755,0.32812393,76522.0,76521.0,0.2083089]
[1731150014959,0.32812393,76522.0,76521.0,0.1843089]
[1731150016051,0.07265297,76524.0,76521.0,0.1843089]
[1731150016052,0.3608,76523.0,76521.0,0.1843089]
[1731150016252,0.3608,76523.0,76522.0,0.09491483]
[1731150017661,0.3608,76523.0,76520.0,0.13043443]
[1731150017662,0.45809897,76523.0,76520.0,0.13043443]
[1731150017856,0.09729895,76522.0,76520.0,0.13043443]
[1731150018054,0.09729895,76521.0,76520.0,0.13043443]
[1731150018370,0.09729895,76521.0,76520.0,0.13733166]
[1731150019864,0.09729895,76521.0,76520.0,0.13043443]
[1731150020270,0.09729895,76521.0,76520.0,0.065299]
[1731150022460,0.09729895,76521.0,76520.0,0.07229709]
[1731150024760,0.07265297,76524.0,76522.0,0.065297]
[1731150024960,0.07265297,76524.0,76522.0,0.13060266]
[1731150025164,0.07265297,76524.0,76523.0,0.065297]
[1731150027576,0.07265297,76524.0,76523.0,0.0724056]
[1731150029655,0.07265297,76524.0,76523.0,0.07240392]
[1731150029859,0.07265297,76524.0,76523.0,0.04840392]
[1731150030370,0.07265297,76524.0,76523.0,0.041297]
[1731150032763,0.16994861,76524.0,76523.0,0.041297]
[1731150033868,0.16994861,76524.0,76519.0,0.0653]
[1731150034172,0.07265297,76519.0,76518.0,0.426101]
[1731150034373,0.12986185,76519.0,76518.0,0.426101]
[1731150036975,0.12986237,76519.0,76518.0,0.426101]
[1731150037380,0.12986237,76519.0,76518.0,0.43309448]
[1731150038783,0.12986237,76519.0,76518.0,0.43309344]
[1731150039374,0.12986237,76519.0,76518.0,0.07229344]
[1731150039678,0.07265297,76519.0,76518.0,0.16598058]
[1731150041776,0.07265297,76519.0,76518.0,0.16616928]
[1731150041976,0.07265297,76519.0,76518.0,0.00699244]
[1731150042791,0.07265297,76519.0,76517.0,0.06531823]
[1731150042792,0.14530594,76519.0,76517.0,0.06531823]
[1731150043083,0.17115397,76518.0,76515.0,0.07141823]
[1731150043289,0.17115397,76518.0,76513.0,0.06531823]
[1731150043589,0.07265297,76514.0,76513.0,0.06531823]
[1731150043782,0.07265297,76514.0,76513.0,0.15934838]
[1731150044883,0.0954,76516.0,76513.0,0.15921935]
[1731150045080,0.0954,76516.0,76513.0,0.06531823]
[1731150045385,0.07265297,76514.0,76513.0,0.06531823]
[1731150045779,0.13795697,76515.0,76511.0,0.07141823]
[1731150045988,0.13795697,76515.0,76514.0,0.05223553]
[1731150046183,0.13795697,76515.0,76513.0,0.05223553]
[1731150046483,0.07265297,76514.0,76513.0,0.05223553]
[1731150047387,0.07265297,76514.0,76512.0,0.05223553]
[1731150047586,0.07265297,76513.0,76512.0,0.05223553]
[1731150047886,0.07265297,76513.0,76512.0,0.15948352]
[1731150048275,0.07265297,76513.0,76512.0,0.06531823]
[1731150049285,0.07265297,76513.0,76511.0,0.06531823]
[1731150050787,0.07265297,76513.0,76510.0,0.06531823]
[1731150051387,0.07265297,76513.0,76509.0,0.13062723]
[1731150051578,0.07265297,76510.0,76509.0,0.13062723]
[1731150051779,0.07265297,76510.0,76509.0,0.22494017]
[1731150052480,0.07265297,76510.0,76509.0,0.23205634]
[1731150052880,0.07265297,76510.0,76509.0,0.23205633]
[1731150053283,0.07265297,76510.0,76509.0,0.1667381]
[1731150053676,0.07265297,76510.0,76509.0,0.16681163]
[1731150054781,0.09788413,76510.0,76509.0,0.07249869]
[1731150057000,0.12987043,76510.0,76509.0,0.07249207]
[1731150060489,0.16996309,76510.0,76509.0,0.07249207]
[1731150060689,0.16996309,76510.0,76509.0,0.065309]
[1731150062790,0.07265297,76510.0,76509.0,0.065309]
[1731150062986,0.065305,76514.0,76508.0,0.06521766]
[1731150062987,0.07265297,76513.0,76508.0,0.06521766]
[1731150063301,0.07265297,76513.0,76512.0,0.065306]
[1731150067698,0.07265297,76513.0,76512.0,0.07267604]
[1731150068101,0.16797297,76513.0,76512.0,0.07267604]
[1731150069894,0.2652819,76513.0,76512.0,0.07267604]
[1731150071011,0.1699619,76513.0,76512.0,0.07267604]
[1731150073313,0.1699619,76513.0,76512.0,0.00737004]
[1731150073913,0.1699619,76513.0,76512.0,0.00739406]
[1731150074408,0.5307619,76513.0,76512.0,0.00739406]
[1731150074811,0.5307619,76513.0,76507.0,0.06531]
[1731150075013,0.07265297,76508.0,76507.0,0.06531]
[1731150075317,0.07265297,76508.0,76507.0,0.07254647]
[1731150075614,0.1699619,76508.0,76507.0,0.07254647]
[1731150076017,0.1699619,76508.0,76507.0,0.06531]
[1731150076215,0.16996448,76508.0,76507.0,0.07251437]
[1731150076409,0.16996448,76508.0,76507.0,0.00720437]
[1731150076605,0.1699649,76508.0,76507.0,0.00720437]
[1731150077219,0.2352759,76508.0,76501.0,0.071415]
[1731150077520,0.07265297,76505.0,76501.0,0.071415]
[1731150077818,0.07265297,76505.0,76504.0,0.10477009]
[1731150078021,0.0399702,76505.0,76504.0,0.10477009]
[1731150078215,0.0399702,76505.0,76504.0,0.10476911]
[1731150078418,0.0399702,76505.0,76504.0,0.18315464]
[1731150078622,0.0399702,76505.0,76504.0,0.10476796]
[1731150078816,0.7650837,76505.0,76504.0,0.16296318]
[1731150079124,0.7650837,76505.0,76504.0,0.00196054]
[1731150079417,0.7251135,76505.0,76504.0,0.00196054]
[1731150080025,0.79152054,76505.0,76504.0,0.00196054]
[1731150081623,0.79152054,76505.0,76501.0,0.05832429]
[1731150081926,0.07265297,76502.0,76497.0,0.07141389]
[1731150082223,0.07265297,76498.0,76493.0,0.07838553]
[1731150082412,0.07265297,76494.0,76492.0,0.071423]
[1731150082723,0.07265297,76494.0,76493.0,0.09536805]
[1731150082917,0.07265297,76494.0,76493.0,0.09527334]
[1731150083910,0.0061,76501.0,76493.0,0.09527334]
[1731150084121,0.065315,76502.0,76497.0,0.065212]
[1731150084321,0.065315,76502.0,76501.0,0.05216955]
[1731150085025,0.12254397,76502.0,76495.0,0.0061]
[1731150085226,0.07265297,76497.0,76495.0,0.0061]
[1731150085417,0.02523615,76496.0,76492.0,0.065323]
[1731150086126,0.02523615,76496.0,76494.0,0.065321]
[1731150092427,0.02523627,76495.0,76494.0,0.065321]
[1731150093021,0.13932888,76497.0,76494.0,0.16017066]
[1731150093227,0.13932888,76497.0,76495.0,0.17306458]
[1731150093426,0.13932888,76497.0,76496.0,0.09484966]
[1731150094625,0.13932888,76497.0,76496.0,0.17306458]
[1731150094825,0.13932888,76497.0,76496.0,0.09484966]
[1731150095131,0.13932888,76497.0,76496.0,0.17306458]
[1731150095331,0.13932888,76497.0,76496.0,0.09484966]
[1731150100027,0.13932888,76497.0,76492.0,0.06520875]
[1731150100235,0.07265297,76493.0,76492.0,0.06520875]
[1731150100433,0.07265297,76493.0,76492.0,0.16019192]
[1731150101136,0.07265297,76493.0,76492.0,0.09498317]
[1731150102028,0.07265297,76493.0,76492.0,0.09493299]
[1731150106733,0.07265297,76493.0,76492.0,0.09508093]
[1731150106933,0.07265297,76493.0,76490.0,0.0061]
[1731150107132,0.07265297,76493.0,76489.0,0.065326]
[1731150107338,0.07265297,76490.0,76489.0,0.065326]
[1731150109833,0.07265297,76490.0,76489.0,0.066326]
[1731150110440,0.07265297,76490.0,76489.0,0.067326]
[1731150110645,0.0978908,76490.0,76489.0,0.067326]
[1731150112550,0.07265297,76490.0,76489.0,0.067326]
[1731150113034,0.07265297,76490.0,76489.0,0.0740539]
[1731150113446,0.07265297,76490.0,76489.0,0.07405393]
[1731150115032,0.02689039,76490.0,76489.0,0.28242633]
[1731150116851,0.02689039,76490.0,76489.0,0.28244421]
[1731150118139,0.02689039,76490.0,76489.0,0.28243352]
[1731150119248,0.02689039,76490.0,76489.0,0.5048884]
[1731150119450,0.02689039,76490.0,76489.0,0.43956782]
[1731150119749,0.02689039,76490.0,76489.0,0.2103724]
[1731150122042,0.0521291,76490.0,76489.0,0.002]
[1731150122851,0.1174541,76490.0,76489.0,0.002]
[1731150123043,0.09221539,76490.0,76489.0,0.002]
[1731150124151,0.11745408,76490.0,76489.0,0.002]
[1731150124550,0.11745409,76490.0,76489.0,0.002]
[1731150126749,0.1174541,76490.0,76489.0,0.002]
[1731150127454,0.2126141,76490.0,76489.0,0.002]
[1731150129252,0.2126141,76490.0,76489.0,0.00878215]
[1731150129456,0.1174541,76490.0,76489.0,0.00878215]
[1731150129649,0.2126141,76490.0,76489.0,0.00878215]
[1731150129844,0.2126141,76490.0,76489.0,0.002]
[1731150130048,0.18737539,76490.0,76489.0,0.21683239]
[1731150132663,0.18737539,76490.0,76489.0,0.21686286]
[1731150132957,0.02689039,76490.0,76489.0,0.21686286]
[1731150133256,0.02689039,76490.0,76489.0,0.21000816]
[1731150133459,0.02689039,76490.0,76489.0,0.21685826]
[1731150134050,0.02689039,76490.0,76489.0,0.21784937]
[1731150134358,0.09516,76491.0,76489.0,0.21784937]
[1731150134359,0.08936248,76491.0,76489.0,0.21784937]
[1731150134659,0.15468648,76491.0,76490.0,0.21584937]
[1731150134858,0.22733945,76491.0,76490.0,0.21584937]
[1731150135159,0.22733945,76491.0,76490.0,0.20899927]
[1731150138357,0.22733945,76491.0,76490.0,0.09534805]
[1731150140359,0.07265297,76491.0,76490.0,0.09534805]
[1731150143166,0.07265297,76491.0,76490.0,0.10221836]
[1731150143369,0.07265297,76491.0,76490.0,0.10221841]
[1731150143667,0.16777297,76491.0,76490.0,0.10221841]
[1731150145166,0.19301125,76491.0,76490.0,0.00687036]
[1731150147370,0.19301125,76491.0,76487.0,0.065328]
[1731150147670,0.19301125,76491.0,76488.0,0.07219528]
[1731150147671,0.02523828,76490.0,76488.0,0.07219528]
[1731150147865,0.02523828,76489.0,76488.0,0.065327]
[1731150148064,0.02523828,76489.0,76488.0,0.07219528]
[1731150148865,0.02523828,76489.0,76488.0,0.07319528]
[1731150149369,0.02523828,76489.0,76488.0,0.07519528]
[1731150149568,0.02523828,76489.0,76488.0,0.07619528]
[1731150150169,0.02523828,76489.0,76488.0,0.069327]
[1731150151266,0.0906649,76489.0,76488.0,0.069327]
[1731150151574,0.02523828,76489.0,76488.0,0.069327]
[1731150152270,0.16777297,76491.0,76488.0,0.27719816]
[1731150152466,0.16777297,76491.0,76489.0,0.20787116]
[1731150152669,0.16777297,76491.0,76490.0,0.20787116]
[1731150153375,0.16777297,76491.0,76490.0,0.2079883]
[1731150153965,0.23303616,76491.0,76490.0,0.2079883]
[1731150156279,0.23303616,76491.0,76490.0,0.2733133]
[1731150157162,0.23303616,76491.0,76490.0,0.28028232]
[1731150157374,0.23303616,76491.0,76490.0,0.28030416]
[1731150158369,0.23303616,76491.0,76490.0,0.28030457]
[1731150160275,0.25827421,76491.0,76490.0,0.07231627]
[1731150161280,0.29026944,76491.0,76490.0,0.07231627]
[1731150161780,0.29026944,76491.0,76490.0,0.07230907]
[1731150162575,0.25827421,76491.0,76490.0,0.07230907]
[1731150162777,0.25827417,76491.0,76490.0,0.07230907]
[1731150163477,0.0905012,76491.0,76490.0,0.07230907]
[1731150163674,0.02523801,76491.0,76490.0,0.07230907]
[1731150163877,0.02523801,76491.0,76490.0,0.08349811]
[1731150164083,0.09512,76497.0,76490.0,0.04997311]
[1731150164280,0.02523531,76496.0,76495.0,0.426121]
[1731150164472,0.02523531,76496.0,76495.0,0.43310507]
[1731150166974,0.0252353,76496.0,76495.0,0.43310507]
[1731150167173,0.13797097,76498.0,76495.0,0.54077785]
[1731150167375,0.13797097,76498.0,76496.0,0.1015433]
[1731150167574,0.13797097,76498.0,76497.0,0.1668623]
[1731150167971,0.065318,76498.0,76497.0,0.16688782]
[1731150168178,0.065318,76498.0,76497.0,0.15987823]
[1731150170078,0.2347416,76500.0,76497.0,0.15987823]
[1731150170278,0.2347416,76500.0,76498.0,0.09455923]
[1731150170474,0.2347416,76500.0,76499.0,0.09455923]
[1731150171487,0.30739457,76500.0,76499.0,0.09455923]
[1731150172082,0.30739457,76500.0,76499.0,0.09433963]
[1731150172777,0.30739457,76500.0,76499.0,0.15962693]
[1731150175278,0.40472483,76500.0,76495.0,0.426801]
[1731150175482,0.07265297,76496.0,76495.0,0.065321]
[1731150176191,0.16998323,76496.0,76495.0,0.065321]
[1731150176781,0.12988221,76496.0,76495.0,0.065321]
[1731150177079,0.1298821,76496.0,76495.0,0.065321]
[1731150180488,0.16998312,76496.0,76495.0,0.065321]
[1731150182300,0.07265297,76496.0,76495.0,0.15968537]
[1731150184993,0.07265297,76496.0,76495.0,0.15968669]
[1731150186793,0.09512,76500.0,76495.0,0.15968669]
[1731150186794,0.16769297,76500.0,76499.0,0.065317]
[1731150186994,0.16769297,76500.0,76499.0,0.15968269]
[1731150189701,0.16769297,76500.0,76499.0,0.23811724]
[1731150190304,0.16769297,76500.0,76499.0,0.065317]
[1731150191010,0.0061,76504.0,76498.0,0.06531816]
[1731150191200,0.0061,76508.0,76507.0,0.065311]
[1731150191507,0.426106,76512.0,76507.0,0.07230501]
[1731150191508,0.09504,76509.0,76507.0,0.07230501]
[1731150191699,0.09504,76509.0,76508.0,0.00699401]
[1731150192496,0.09504,76509.0,76507.0,0.065311]
[1731150197305,0.09504,76509.0,76508.0,0.05219535]
[1731150197605,0.09504,76509.0,76506.0,0.32153493]
[1731150197606,0.12027204,76509.0,76506.0,0.32153493]
[1731150197800,0.07265297,76507.0,76506.0,0.38684593]
[1731150198105,0.16996692,76507.0,76506.0,0.38684593]
[1731150198901,0.27290603,76507.0,76506.0,0.38684593]
[1731150199104,0.31299895,76507.0,76506.0,0.38684593]
[1731150199906,0.31299895,76507.0,76506.0,0.065311]
[1731150200100,0.21681541,76507.0,76506.0,0.065311]
[1731150200406,0.16996554,76507.0,76506.0,0.065311]
[1731150201514,0.24088788,76507.0,76506.0,0.065311]
[1731150201713,0.16996554,76507.0,76506.0,0.065311]
[1731150202208,0.31296877,76507.0,76506.0,0.065311]
[1731150203308,0.16996554,76507.0,76506.0,0.065311]
[1731150203706,0.31296877,76507.0,76506.0,0.065311]
[1731150204108,0.16996554,76507.0,76506.0,0.065311]
[1731150205206,0.09731257,76507.0,76506.0,0.065311]
[1731150205408,0.14300323,76508.0,76506.0,0.065311]
[1731150205708,0.14300323,76508.0,76505.0,0.3608]
[1731150205709,0.07265297,76510.0,76509.0,0.065309]
[1731150206107,0.3608,76511.0,76510.0,0.065308]
[1731150206307,0.3608,76511.0,76510.0,0.13796097]
[1731150206713,0.0061,76517.0,76516.0,0.065303]
[1731150206919,0.09496,76519.0,76518.0,0.065301]
[1731150207809,0.09496,76519.0,76518.0,0.11747645]
[1731150208211,0.09496,76519.0,76518.0,0.065301]
[1731150208816,0.09496,76519.0,76518.0,0.11747645]
[1731150209211,0.09496,76519.0,76518.0,0.065301]
[1731150210013,0.09496,76519.0,76518.0,0.063301]
[1731150211923,0.0061,76526.0,76516.0,0.12482842]
[1731150212224,0.0061,76526.0,76525.0,0.065295]
[1731150212410,0.06466792,76526.0,76525.0,0.065295]
[1731150212616,0.45652,76528.0,76527.0,0.065293]
[1731150212817,0.45576,76528.0,76527.0,0.065293]
[1731150218415,0.3608,76528.0,76527.0,0.065293]
[1731150218610,0.12586,76531.0,76530.0,0.065291]
[1731150218611,0.09496,76531.0,76530.0,0.065291]
[1731150219020,0.09496,76531.0,76526.0,0.13774398]
[1731150219021,0.0654308,76532.0,76526.0,0.13774398]
[1731150219322,0.07265297,76537.0,76530.0,0.07265297]
[1731150219509,0.07265297,76537.0,76536.0,0.065286]
[1731150219714,0.16993634,76537.0,76536.0,0.065286]
[1731150220117,0.09728337,76537.0,76525.0,0.0317]
[1731150220318,0.09728337,76536.0,76535.0,0.065287]
[1731150222823,0.09728175,76536.0,76535.0,0.065287]
[1731150225224,0.09728175,76536.0,76535.0,0.062287]
[1731150226016,0.09728175,76536.0,76535.0,0.125887]
[1731150226216,0.09727644,76536.0,76535.0,0.125887]
[1731150226445,0.09727644,76536.0,76535.0,0.517847]
[1731150226721,0.09727644,76536.0,76535.0,2.017847]
[1731150227924,0.0061,76543.0,76535.0,1.95556]
[1731150228126,0.0061,76547.0,76546.0,0.065277]
[1731150228327,0.14289388,76548.0,76546.0,0.065277]
[1731150228724,0.14289388,76548.0,76546.0,0.13792997]
[1731150234130,0.14289388,76548.0,76547.0,0.065276]
[1731150234331,0.00196074,76552.0,76551.0,0.065273]
[1731150239230,0.07399991,76552.0,76550.0,0.03341191]
[1731150239434,0.07399991,76552.0,76549.0,0.3608]
[1731150239435,0.09725625,76551.0,76549.0,0.3608]
[1731150239735,0.23995482,76550.0,76549.0,0.426075]
[1731150240135,0.23995482,76550.0,76549.0,0.424075]
[1731150240341,0.09725625,76550.0,76549.0,0.424075]
[1731150240841,0.09725625,76550.0,76549.0,0.28971533]
[1731150242341,0.1427492,76551.0,76550.0,0.065274]
[1731150242642,0.1427492,76551.0,76549.0,0.22444033]
[1731150242643,0.07461371,76552.0,76551.0,0.065273]
[1731150243636,0.07461371,76552.0,76541.0,0.36148]
[1731150243839,0.065275,76549.0,76546.0,0.065277]
[1731150244150,0.065276,76547.0,76546.0,0.065277]
[1731150244851,0.13792897,76547.0,76546.0,0.065277]
[1731150245046,0.07265297,76547.0,76546.0,0.065277]
[1731150247647,0.07265297,76547.0,76541.0,0.3608]
[1731150247844,0.0319,76546.0,76542.0,0.06528]
[1731150248149,0.0319,76546.0,76541.0,0.3608]
[1731150248150,0.0319,76546.0,76543.0,0.065279]
[1731150248648,0.10325297,76545.0,76538.0,0.03909477]
[1731150248852,0.10325297,76545.0,76535.0,0.06592597]
[1731150248853,0.07265297,76539.0,76535.0,0.06592597]
[1731150249047,0.07265297,76539.0,76538.0,0.065284]
[1731150250344,0.09787463,76539.0,76538.0,0.065284]
[1731150250545,0.16992767,76539.0,76538.0,0.065284]
[1731150251052,0.16992818,76539.0,76535.0,0.00195995]
[1731150251256,0.3608,76536.0,76535.0,0.00195995]
[1731150251447,0.45807894,76536.0,76535.0,0.00195995]
[1731150251856,0.77471633,76536.0,76522.0,0.3608]
[1731150252154,0.07265297,76526.0,76522.0,0.3608]
[1731150252355,0.08729646,76525.0,76522.0,0.426098]
[1731150252555,0.05719646,76524.0,76522.0,0.426098]
[1731150255056,0.05719646,76524.0,76523.0,0.00693178]
[1731150255350,0.05719646,76524.0,76523.0,0.00692971]
[1731150256255,0.05719646,76524.0,76522.0,0.426778]
[1731150256473,0.05719646,76524.0,76522.0,0.426098]
[1731150256646,0.0301,76525.0,76522.0,0.426098]
[1731150256647,0.05720621,76523.0,76522.0,0.426098]
[1731150257247,0.0301,76525.0,76522.0,0.57199551]
[1731150257548,0.07265297,76526.0,76524.0,0.07810078]
[1731150257748,0.07265297,76526.0,76525.0,0.09634163]
[1731150258452,0.09273235,76527.0,76525.0,0.09634163]
[1731150258659,0.09273235,76527.0,76526.0,0.09634163]
[1731150259246,0.0332,76527.0,76526.0,0.09634163]
[1731150259650,0.3608,76528.0,76526.0,0.09634163]
[1731150259853,0.3608,76528.0,76527.0,0.16163463]
[1731150261246,0.0061,76532.0,76531.0,0.06529]
[1731150261454,0.0061,76538.0,76537.0,0.065285]
[1731150261651,0.45636,76543.0,76542.0,0.065281]
[1731150261851,0.3608,76543.0,76542.0,0.065281]
[1731150262060,0.3608,76543.0,76542.0,0.13033406]
[1731150262253,0.3608,76543.0,76542.0,0.065281]
[1731150262454,0.3608,76543.0,76542.0,0.13033406]
[1731150262655,0.3608,76543.0,76542.0,0.257859]
[1731150262959,0.3608,76543.0,76542.0,0.19280594]
[1731150263550,0.0061,76551.0,76542.0,0.12752494]
[1731150263757,0.00196074,76552.0,76550.0,0.11731813]
[1731150263948,0.00196074,76552.0,76551.0,0.05204513]
[1731150264157,0.00196074,76552.0,76550.0,0.13032941]
[1731150264551,0.00196074,76552.0,76551.0,0.15982105]
[1731150265358,0.09921809,76552.0,76548.0,0.07265297]
[1731150265558,0.09725735,76551.0,76548.0,0.07265297]
[1731150265857,0.09725735,76550.0,76549.0,0.065275]
[1731150271559,0.16275562,76550.0,76549.0,0.065275]
[1731150272373,0.06549827,76550.0,76549.0,0.065275]
[1731150272569,0.065273,76551.0,76549.0,0.065275]
[1731150274870,0.07265297,76550.0,76549.0,0.065275]
[1731150275463,0.43345297,76550.0,76549.0,0.065275]
[1731150275864,0.07265297,76550.0,76549.0,0.065275]
[1731150276165,0.43345297,76550.0,76549.0,0.065275]
[1731150278277,0.07265297,76550.0,76549.0,0.065275]
[1731150278470,0.43345297,76550.0,76549.0,0.065275]
[1731150278667,0.3608,76550.0,76549.0,0.065275]
[1731150279773,0.065273,76551.0,76549.0,0.065275]
[1731150279974,0.3608,76550.0,76549.0,0.065275]
[1731150280277,0.065273,76551.0,76549.0,0.065275]
[1731150280476,0.065273,76551.0,76542.0,0.0325]
[1731150280477,0.43345297,76550.0,76542.0,0.0325]
[1731150280777,0.07265297,76543.0,76541.0,0.065281]
[1731150285083,0.07265297,76543.0,76541.0,0.041281]
[1731150286771,0.43345297,76543.0,76541.0,0.041281]
[1731150287586,0.14410086,76542.0,76533.0,0.0318]
[1731150287783,0.07265297,76538.0,76533.0,0.0318]
[1731150287984,0.09727145,76537.0,76535.0,0.065286]
[1731150288178,0.09727145,76536.0,76535.0,0.065286]
[1731150288378,0.06529781,76536.0,76535.0,0.065286]
[1731150288681,0.09727145,76536.0,76535.0,0.065286]
[1731150290778,0.07265297,76537.0,76535.0,0.065286]
[1731150291078,0.09727201,76536.0,76535.0,0.065286]
[1731150292373,0.09727201,76536.0,76535.0,0.07205687]
[1731150292974,0.09727201,76536.0,76535.0,0.07205689]
[1731150293382,0.09727201,76536.0,76535.0,0.065286]
[1731150293682,0.09727201,76536.0,76535.0,0.07206071]
[1731150294082,0.09727201,76536.0,76535.0,0.46402071]
[1731150294480,0.09727201,76536.0,76535.0,0.83582424]
[1731150294682,0.0061,76546.0,76538.0,0.065284]
[1731150294878,0.04007391,76545.0,76544.0,0.065279]
[1731150295083,0.04007391,76545.0,76544.0,0.14480825]
[1731150295478,0.3608,76550.0,76549.0,0.065275]
[1731150295691,0.3608,76550.0,76549.0,0.28330359]
[1731150296187,0.0061,76555.0,76554.0,0.06527]
[1731150296391,0.3608,76557.0,76554.0,0.27642231]
[1731150296588,0.3608,76557.0,76555.0,0.21115231]
[1731150296788,0.3608,76557.0,76556.0,0.21115231]
[1731150300202,0.3608,76557.0,76556.0,0.18715231]
[1731150302088,0.36275993,76559.0,76556.0,0.18715231]
[1731150302290,0.0061,76564.0,76557.0,0.09662277]
[1731150302490,0.3918,76568.0,76555.0,0.55209852]
[1731150302491,0.457059,76568.0,76563.0,0.065262]
[1731150302694,0.457059,76568.0,76567.0,0.03911842]
[1731150302886,0.457059,76568.0,76566.0,0.06526]
[1731150304296,0.09472,76573.0,76572.0,0.065254]
[1731150305094,0.3608,76575.0,76572.0,0.065254]
[1731150305297,0.3608,76575.0,76573.0,0.065254]
[1731150309196,0.426053,76575.0,76573.0,0.065254]
[1731150310484,0.09723336,76574.0,76573.0,0.04500912]
[1731150311090,0.09723336,76574.0,76567.0,0.065259]
[1731150311291,0.065254,76573.0,76567.0,0.065259]
[1731150311499,0.16248836,76572.0,76567.0,0.065259]
[1731150311697,0.09723336,76571.0,76567.0,0.065259]
[1731150311892,0.09723336,76571.0,76563.0,0.39246]
[1731150312092,0.09723336,76571.0,76569.0,0.065258]
[1731150312793,0.065255,76572.0,76569.0,0.065258]
[1731150313004,0.09723616,76571.0,76569.0,0.065258]
[1731150313194,0.09723616,76570.0,76569.0,0.065258]
[1731150314897,0.065258,76569.0,76564.0,0.065262]
[1731150315098,0.09723616,76568.0,76564.0,0.065262]
[1731150315296,0.3608,76567.0,76564.0,0.065262]
[1731150315497,0.3608,76567.0,76556.0,0.10078]
[1731150315498,0.065262,76564.0,76556.0,0.10078]
[1731150315700,0.09723616,76563.0,76556.0,0.09468]
[1731150315901,0.09723616,76563.0,76562.0,0.065264]
[1731150317599,0.065262,76564.0,76562.0,0.065264]
[1731150318601,0.11303844,76563.0,76561.0,0.03910236]
[1731150318803,0.11303844,76563.0,76559.0,0.03902126]
[1731150319104,0.065265,76560.0,76558.0,0.10428826]
[1731150319401,0.3608,76559.0,76558.0,0.10428826]
[1731150319906,0.3608,76559.0,76555.0,0.03902126]
[1731150319907,0.065267,76558.0,76555.0,0.03902126]
[1731150320405,0.065267,76558.0,76556.0,0.03902126]
[1731150321002,0.3608,76559.0,76556.0,0.03902126]
[1731150321202,0.065268,76557.0,76555.0,0.065269]
[1731150321402,0.065268,76557.0,76556.0,0.03904925]
[1731150321602,0.065268,76557.0,76555.0,0.065269]
[1731150323207,0.065268,76557.0,76555.0,0.11744167]
[1731150323509,0.065268,76557.0,76555.0,0.065269]
[1731150324207,0.065268,76557.0,76555.0,0.11744167]
[1731150324597,0.02521599,76556.0,76555.0,0.065269]
[1731150327514,0.16305171,76556.0,76555.0,0.065269]
[1731150330210,0.09778271,76556.0,76549.0,0.10336672]
[1731150330414,0.43336672,76550.0,76546.0,0.00195933]
[1731150330606,0.21040944,76547.0,76546.0,0.00195933]
[1731150330808,0.19502916,76547.0,76546.0,0.00195933]
[1731150332503,0.16305871,76547.0,76546.0,0.00195933]
[1731150332707,0.13784272,76547.0,76546.0,0.00195933]
[1731150332907,0.21040944,76547.0,76546.0,0.00195933]
[1731150335118,0.21040944,76547.0,76539.0,0.0061]
[1731150335119,0.06528,76543.0,76541.0,0.03908025]
[1731150335305,0.06528,76543.0,76537.0,0.11739191]
[1731150335306,0.13784672,76543.0,76540.0,0.03908025]
[1731150335813,0.07256672,76543.0,76540.0,0.03908025]
[1731150336026,0.065281,76542.0,76540.0,0.03908025]
[1731150337213,0.065281,76542.0,76534.0,0.0061]
[1731150337214,0.065282,76540.0,76539.0,0.03908025]
[1731150337508,0.3608,76540.0,76539.0,0.03904746]
[1731150337716,0.3608,76540.0,76538.0,0.03904345]
[1731150337717,0.426082,76540.0,76538.0,0.03904345]
[1731150337914,0.065284,76538.0,76537.0,0.03904345]
[1731150338112,0.13785072,76538.0,76537.0,0.03904345]
[1731150338623,0.13785072,76538.0,76536.0,0.03904345]
[1731150339716,0.13785072,76538.0,76530.0,0.0061]
[1731150339717,0.06529,76532.0,76530.0,0.0061]
[1731150340017,0.06529,76532.0,76526.0,0.06725403]
[1731150340018,0.3608,76531.0,76526.0,0.00196003]
[1731150340212,0.065293,76528.0,76526.0,0.00196003]